Workbook

Sheet Master Sheet
A1: Government Senior Secondary School, Deogarh (Rajsamand)
A2: GA 55A Offline
A3: Session | B3: 2019-20 | C3: DDO CODE:: | D3: 26887
A4: Employee Name | B4: Designation | C4: Employee ID | D4: Pay Scale | E4: NPS/GPF
A5: Meghraj Sharma | B5: Lecturer | C5: RJNA12345678910 | D5: L-12 | E5: GPF
A6: GPF/PRAN Number | B6: Account No | C6: PAN No. | D6: TAN No | E6: Probation
A7: 12345678910 | B7: 1234567891011 | C7: ABCD1234E | D7: ABCD1234E | E7: NO
A8: March Basic | B8: Handi. All. | C8: Wash All. | D8: CCA Amount | E8: Surrender Month
A9: 69200 | E9: November
A10: Ot. Allow 1 | B10: Ot. Allow 2 | C10: Ot. Allow 3 | D10: Bonus | E10: Bonus Months
D11: NO
A12: If Basic Changed Month | B12: Changed Basic | C12: July Basic Incriment Other Than 7th Pay

Sheet DA HRA RATE
A1: ='Master Sheet'!A1 -> Government Senior Secondary School, Deogarh (Rajsamand)
A2: DA and HRA Rates Monthwise
A4: Sr.No | B4: Month | C4: DA Rate | D4: HRA Rate
A5: 3 | B5: March | C5: 12.00% | D5: 8.00%
A6: 4 | B6: April | C6: 12.00% | D6: 8.00%
A7: 5 | B7: May | C7: 12.00% | D7: 8.00%
A8: 6 | B8: June | C8: 12.00% | D8: 8.00%
A9: 7 | B9: July | C9: 12.00% | D9: 8.00%
A10: 8 | B10: August | C10: 12.00% | D10: 8.00%
A11: 9 | B11: September | C11: 12.00% | D11: 8.00%
A12: 10 | B12: October | C12: 12.00% | D12: 8.00%
A13: 11 | B13: November | C13: 12.00% | D13: 8.00%
A14: 12 | B14: December | C14: 12.00% | D14: 8.00%
A15: 1 | B15: January | C15: 12.00% | D15: 8.00%
A16: 2 | B16: February | C16: 12.00% | D16: 8.00%

Sheet Deductions
A1: ='Master Sheet'!A1 -> Government Senior Secondary School, Deogarh (Rajsamand)
A2: Deductions Detail
A4: Deduction Name | B4: Deduction Amount | C4: If Changed than Month | D4: Changed Amount
A5: GPF | B5: 5100
A6: GPF Loan
A7: RPMF/RGHS
A8: SIP | B8: 3000
A9: SIL | B9: 5000
A10: SII
A11: LIC
A12: CM Corona
A13: Other Ded.
A15: Itax Amount
A16: Sr.No | B16: Month | C16: Itax Amount
A17: 3 | B17: March | C17: 101
A18: 4 | B18: April | C18: 102
A19: 5 | B19: May | C19: 103
A20: 6 | B20: June | C20: 104
A21: 7 | B21: July | C21: 105
A22: 8 | B22: August | C22: 106
A23: 9 | B23: September | C23: 107
A24: 10 | B24: October | C24: 108
A25: 11 | B25: November | C25: 109
A26: 12 | B26: December | C26: 110
A27: 1 | B27: January | C27: 111
A28: 2 | B28: February | C28: 112

Sheet GA55 A
A1: Government Of Rajasthan | M1: Page No. | O1: 1
A2: GA55 A | M2: Financial Year : | O2: =IF('Master Sheet'!B3="","",'Master Sheet'!B3) -> 2019-20
A3: DDO Code: | C3: =IF('Master Sheet'!D3="","",'Master Sheet'!D3) -> 26887 | F3: Office Name : | H3: GSSS Deogarh | M3: TAN: | N3: =IF('Master Sheet'!D7="","",'Master Sheet'!D7) -> ABCD1234E
A4: Employee Name : | C4: =IF('Master Sheet'!A5="","",UPPER('Master Sheet'!A5)) -> MEGHRAJ SHARMA | H4: Employee ID : | J4: =IF('Master Sheet'!C5="","",'Master Sheet'!C5) -> RJNA12345678910
A5: Designation : | C5: =IF('Master Sheet'!B5="","",'Master Sheet'!B5) -> Lecturer | H5: Pay Scale : | J5: =IF('Master Sheet'!D5="","",'Master Sheet'!D5) -> L-12
A6: GPF/PRAN Number : | C6: =IF('Master Sheet'!A7="","",'Master Sheet'!A7) -> 12345678910 | H6: Account No : | J6: =IF('Master Sheet'!B7="","",'Master Sheet'!B7) -> 1234567891011 | M6: PAN : | N6: =IF('Master Sheet'!C7="","",'Master Sheet'!C7) -> ABCD1234E
A7: Pay Month Pay Year | C7: Bill No. TV No. | D7: Bill Date TV Date | E7: ----------------Allowances---------------- | I7: Gross Amount | J7: ------------Deductions------------ | N7: Total deduction | O7: NetAmount
B8: Salary | E8: Basic | F8: =IF('Master Sheet'!$A$9="","",'Master Sheet'!$A$9) -> 69200.00 | G8: DA | H8: =IF('Master Sheet'!$E$7="YES","",IF(F8="","",ROUND(F8*'DA HRA RATE'!$C$5,0))) -> 8304.00 | I8: =SUM(F8:F12,H8:H12) -> 83040.00 | J8: ECPenF | K8: =IFERROR(IF('Master Sheet'!$E$5="GPF","",ROUND(SUM(F8,H8)*10%,0)),"") ->  | L8: =Deductions!A9 -> SIL | M8: =IF(Deductions!B9="","",Deductions!B9) -> 5000.00 | N8: =SUM(M8:M12,K8:K12) -> 13201.00 | O8: =SUM(I8-N8) -> 69839.00 | W8: =A10 -> March | X8: =F8 -> 69200.00
E9: HRA | F9: =IF('Master Sheet'!$E$7="Yes","",IF(F8="","",ROUND(F8*'DA HRA RATE'!$D$5,0))) -> 5536.00 | G9: Wash All. | H9: =IF('Master Sheet'!$C$9="","",'Master Sheet'!$C$9) ->  | J9: =Deductions!A5 -> GPF | K9: =IF(Deductions!B5="","",Deductions!B5) -> 5100.00 | L9: =Deductions!A10 -> SII | M9: =IF(Deductions!B10="","",Deductions!B10) ->  | W9: =A15 -> April | X9: =F13 -> 69200.00
A10: March | E10: Handi. All. | F10: =IF('Master Sheet'!$B$9="","",'Master Sheet'!$B$9) ->  | G10: CCA | H10: =IF('Master Sheet'!$D$9="","",'Master Sheet'!$D$9) ->  | J10: =Deductions!A6 -> GPF Loan | K10: =IF(Deductions!B6="","",Deductions!B6) ->  | L10: =Deductions!A11 -> LIC | M10: =IF(Deductions!B11="","",Deductions!B11) ->  | W10: =A20 -> May | X10: =F18 -> 69200.00
A11: =LEFT($O$2,4) -> 2019 | E11: ='Master Sheet'!$A$10 -> Ot. Allow 1 | F11: =IF('Master Sheet'!$A$11="","",'Master Sheet'!$A$11) ->  | G11: ='Master Sheet'!$B$10 -> Ot. Allow 2 | H11: =IF('Master Sheet'!$B$11="","",'Master Sheet'!$B$11) ->  | J11: =Deductions!A7 -> RPMF/RGHS | K11: =IF(Deductions!B7="","",Deductions!B7) ->  | L11: Itax | M11: =IF(A10=Deductions!B17,Deductions!C17,"") -> 101.00 | W11: =A25 -> June | X11: =F23 -> 69200.00
E12: ='Master Sheet'!$C$10 -> Ot. Allow 3 | F12: =IF('Master Sheet'!$C$11="","",'Master Sheet'!$C$11) ->  | G12: Ot. Allow 4 | J12: =Deductions!A8 -> SIP | K12: =IF(Deductions!B8="","",Deductions!B8) -> 3000.00 | L12: =Deductions!A12 -> CM Corona | M12: =IF(Deductions!B12="","",Deductions!B12) ->  | W12: =A30 -> July | X12: =F28 -> 71300.00
B13: Salary | E13: Basic | F13: =IF(A15='Master Sheet'!$A$13,'Master Sheet'!$B$13,F8) -> 69200.00 | G13: DA | H13: =IF('Master Sheet'!$E$7="YES","",IF(F13="","",ROUND(F13*'DA HRA RATE'!$C$6,0))) -> 8304.00 | I13: =SUM(F13:F17,H13:H17) -> 83040.00 | J13: ECPenF | K13: =IFERROR(IF('Master Sheet'!$E$5="GPF","",ROUND(SUM(F13,H13)*10%,0)),"") ->  | L13: =L8 -> SIL | M13: =IF(A15=Deductions!$C$9,Deductions!$D$9,M8) -> 5000.00 | N13: =SUM(M13:M17,K13:K17) -> 13202.00 | O13: =SUM(I13-N13) -> 69838.00 | W13: =A35 -> August | X13: =F33 -> 71300.00
E14: HRA | F14: =IF('Master Sheet'!$E$7="Yes","",IF(F13="","",ROUND(F13*'DA HRA RATE'!$D$6,0))) -> 5536.00 | G14: Wash All. | H14: =H9 ->  | J14: =J9 -> GPF | K14: =IF(A15=Deductions!$C$5,Deductions!$D$5,K9) -> 5100.00 | L14: =L9 -> SII | M14: =IF(A15=Deductions!$C$10,Deductions!$D$10,M9) ->  | W14: =A42 -> September | X14: =F40 -> 71300.00
A15: April | E15: Handi. All. | F15: =F10 ->  | G15: CCA | H15: =H10 ->  | J15: =J10 -> GPF Loan | K15: =IF(A15=Deductions!$C$6,Deductions!$D$6,K10) ->  | L15: LIC | M15: =IF(A15=Deductions!$C$11,Deductions!$D$11,M10) ->  | W15: =A47 -> October | X15: =F45 -> 71300.00
A16: =LEFT($O$2,4) -> 2019 | E16: ='Master Sheet'!$A$10 -> Ot. Allow 1 | F16: =F11 ->  | G16: ='Master Sheet'!$B$10 -> Ot. Allow 2 | H16: =H11 ->  | J16: RPMF/RGHS | K16: =IF(A15=Deductions!$C$7,Deductions!$D$7,K11) ->  | L16: Itax | M16: =IF(A15=Deductions!B18,Deductions!C18,"") -> 102.00 | W16: =A52 -> November | X16: =F50 -> 71300.00
E17: ='Master Sheet'!$C$10 -> Ot. Allow 3 | F17: =F12 ->  | G17: =G12 -> Ot. Allow 4 | H17: =H12 -> 0.00 | J17: SIP | K17: =K12 -> 3000.00 | L17: CM Corona | M17: =IF(A15=Deductions!$C$12,Deductions!$D$12,M12) ->  | W17: =A57 -> December | X17: =F55 -> 71300.00
B18: Salary | E18: Basic | F18: =IF(A20='Master Sheet'!$A$13,'Master Sheet'!$B$13,F13) -> 69200.00 | G18: DA | H18: =IF('Master Sheet'!$E$7="YES","",IF(F18="","",ROUND(F18*'DA HRA RATE'!$C$7,0))) -> 8304.00 | I18: =SUM(F18:F22,H18:H22) -> 83040.00 | J18: ECPenF | K18: =IFERROR(IF('Master Sheet'!$E$5="GPF","",ROUND(SUM(F18,H18)*10%,0)),"") ->  | L18: =L13 -> SIL | M18: =IF(A20=Deductions!$C$9,Deductions!$D$9,M13) -> 5000.00 | N18: =SUM(M18:M22,K18:K22) -> 13203.00 | O18: =SUM(I18-N18) -> 69837.00 | W18: =A62 -> January | X18: =F60 -> 71300.00
E19: HRA | F19: =IF('Master Sheet'!$E$7="Yes","",IF(F18="","",ROUND(F18*'DA HRA RATE'!$D$7,0))) -> 5536.00 | G19: Wash All. | H19: =H14 ->  | J19: =J14 -> GPF | K19: =IF(A20=Deductions!$C$5,Deductions!$D$5,K14) -> 5100.00 | L19: SII | M19: =IF(A20=Deductions!$C$10,Deductions!$D$10,M14) ->  | W19: =A67 -> February | X19: =F65 -> 71300.00
A20: May | E20: Handi. All. | F20: =F15 ->  | G20: CCA | H20: =H15 ->  | J20: =J15 -> GPF Loan | K20: =IF(A20=Deductions!$C$6,Deductions!$D$6,K15) ->  | L20: LIC | M20: =IF(A20=Deductions!$C$11,Deductions!$D$11,M15) -> 
A21: =LEFT($O$2,4) -> 2019 | E21: ='Master Sheet'!$A$10 -> Ot. Allow 1 | F21: =F16 ->  | G21: ='Master Sheet'!$B$10 -> Ot. Allow 2 | H21: =H16 ->  | J21: RPMF/RGHS | K21: =IF(A20=Deductions!$C$7,Deductions!$D$7,K16) ->  | L21: Itax | M21: =IF(A20=Deductions!B19,Deductions!C19,"") -> 103.00
E22: ='Master Sheet'!$C$10 -> Ot. Allow 3 | F22: =F17 ->  | G22: =G17 -> Ot. Allow 4 | H22: =H17 -> 0.00 | J22: SIP | K22: =K17 -> 3000.00 | L22: CM Corona | M22: =IF(A20=Deductions!$C$12,Deductions!$D$12,M17) -> 
B23: Salary | E23: Basic | F23: =IF(A25='Master Sheet'!$A$13,'Master Sheet'!$B$13,F18) -> 69200.00 | G23: DA | H23: =IF('Master Sheet'!$E$7="YES","",IF(F23="","",ROUND(F23*'DA HRA RATE'!$C$8,0))) -> 8304.00 | I23: =SUM(F23:F27,H23:H27) -> 83040.00 | J23: ECPenF | K23: =IFERROR(IF('Master Sheet'!$E$5="GPF","",ROUND(SUM(F23,H23)*10%,0)),"") ->  | L23: =L18 -> SIL | M23: =IF(A25=Deductions!$C$9,Deductions!$D$9,M18) -> 5000.00 | N23: =SUM(M23:M27,K23:K27) -> 13204.00 | O23: =SUM(I23-N23) -> 69836.00
E24: HRA | F24: =IF('Master Sheet'!$E$7="Yes","",IF(F23="","",ROUND(F23*'DA HRA RATE'!$D$8,0))) -> 5536.00 | G24: Wash All. | H24: =H19 ->  | J24: =J19 -> GPF | K24: =IF(A25=Deductions!$C$5,Deductions!$D$5,K19) -> 5100.00 | L24: SII | M24: =IF(A25=Deductions!$C$10,Deductions!$D$10,M19) -> 
A25: June | E25: Handi. All. | F25: =F20 ->  | G25: CCA | H25: =H20 ->  | J25: =J20 -> GPF Loan | K25: =IF(A25=Deductions!$C$6,Deductions!$D$6,K20) ->  | L25: LIC | M25: =IF(A25=Deductions!$C$11,Deductions!$D$11,M20) -> 
A26: =LEFT($O$2,4) -> 2019 | E26: ='Master Sheet'!$A$10 -> Ot. Allow 1 | F26: =F21 ->  | G26: ='Master Sheet'!$B$10 -> Ot. Allow 2 | H26: =H21 ->  | J26: RPMF/RGHS | K26: =IF(A25=Deductions!$C$7,Deductions!$D$7,K21) ->  | L26: Itax | M26: =IF(A25=Deductions!B20,Deductions!C20,"") -> 104.00
E27: ='Master Sheet'!$C$10 -> Ot. Allow 3 | F27: =F22 ->  | G27: =G22 -> Ot. Allow 4 | H27: =H22 -> 0.00 | J27: SIP | K27: =K22 -> 3000.00 | L27: CM Corona | M27: =IF(A25=Deductions!$C$12,Deductions!$D$12,M22) -> 
B28: Salary | E28: Basic | F28: =IF('Master Sheet'!C13="",IF('Master Sheet'!$E$7="Yes",'GA55 A'!$F$23,MROUND(F23*1.03,100)),'Master Sheet'!C13) -> 71300.00 | G28: DA | H28: =IF('Master Sheet'!$E$7="YES","",IF(F28="","",ROUND(F28*'DA HRA RATE'!$C$9,0))) -> 8556.00 | I28: =SUM(F28:F32,H28:H32) -> 85560.00 | J28: ECPenF | K28: =IFERROR(IF('Master Sheet'!$E$5="GPF","",ROUND(SUM(F28,H28)*10%,0)),"") ->  | L28: =L23 -> SIL | M28: =IF(A30=Deductions!$C$9,Deductions!$D$9,M23) -> 5000.00 | N28: =SUM(M28:M32,K28:K32) -> 13205.00 | O28: =SUM(I28-N28) -> 72355.00
E29: HRA | F29: =IF('Master Sheet'!$E$7="Yes","",IF(F28="","",ROUND(F28*'DA HRA RATE'!$D$9,0))) -> 5704.00 | G29: Wash All. | H29: =H24 ->  | J29: =J24 -> GPF | K29: =IF(A30=Deductions!$C$5,Deductions!$D$5,K24) -> 5100.00 | L29: SII | M29: =IF(A30=Deductions!$C$10,Deductions!$D$10,M24) -> 
A30: July | E30: Handi. All. | F30: =F25 ->  | G30: CCA | H30: =H25 ->  | J30: =J25 -> GPF Loan | K30: =IF(A30=Deductions!$C$6,Deductions!$D$6,K25) ->  | L30: LIC | M30: =IF(A30=Deductions!$C$11,Deductions!$D$11,M25) -> 
A31: =LEFT($O$2,4) -> 2019 | E31: ='Master Sheet'!$A$10 -> Ot. Allow 1 | F31: =F26 ->  | G31: ='Master Sheet'!$B$10 -> Ot. Allow 2 | H31: =H26 ->  | J31: RPMF/RGHS | K31: =IF(A30=Deductions!$C$7,Deductions!$D$7,K26) ->  | L31: Itax | M31: =IF(A30=Deductions!B21,Deductions!C21,"") -> 105.00
E32: ='Master Sheet'!$C$10 -> Ot. Allow 3 | F32: =F27 ->  | G32: =G27 -> Ot. Allow 4 | H32: =H27 -> 0.00 | J32: SIP | K32: =K27 -> 3000.00 | L32: CM Corona | M32: =IF(A30=Deductions!$C$12,Deductions!$D$12,M27) -> 
B33: Salary | E33: Basic | F33: =IF(A35='Master Sheet'!$A$13,'Master Sheet'!$B$13,F28) -> 71300.00 | G33: DA | H33: =IF('Master Sheet'!$E$7="YES","",IF(F33="","",ROUND(F33*'DA HRA RATE'!$C$10,0))) -> 8556.00 | I33: =SUM(F33:F37,H33:H37) -> 85560.00 | J33: ECPenF | K33: =IFERROR(IF('Master Sheet'!$E$5="GPF","",ROUND(SUM(F33,H33)*10%,0)),"") ->  | L33: =L28 -> SIL | M33: =IF(A35=Deductions!$C$9,Deductions!$D$9,M28) -> 5000.00 | N33: =SUM(M33:M37,K33:K37) -> 13206.00 | O33: =SUM(I33-N33) -> 72354.00
E34: HRA | F34: =IF('Master Sheet'!$E$7="Yes","",IF(F33="","",ROUND(F33*'DA HRA RATE'!$D$10,0))) -> 5704.00 | G34: Wash All. | H34: =H29 ->  | J34: =J29 -> GPF | K34: =IF(A35=Deductions!$C$5,Deductions!$D$5,K29) -> 5100.00 | L34: SII | M34: =IF(A35=Deductions!$C$10,Deductions!$D$10,M29) -> 
A35: August | E35: Handi. All. | F35: =F30 ->  | G35: CCA | H35: =H30 ->  | J35: =J30 -> GPF Loan | K35: =IF(A35=Deductions!$C$6,Deductions!$D$6,K30) ->  | L35: LIC | M35: =IF(A35=Deductions!$C$11,Deductions!$D$11,M30) -> 
A36: =LEFT($O$2,4) -> 2019 | E36: ='Master Sheet'!$A$10 -> Ot. Allow 1 | F36: =F31 ->  | G36: ='Master Sheet'!$B$10 -> Ot. Allow 2 | H36: =H31 ->  | J36: RPMF/RGHS | K36: =IF(A35=Deductions!$C$7,Deductions!$D$7,K31) ->  | L36: Itax | M36: =IF(A35=Deductions!B22,Deductions!C22,"") -> 106.00
E37: ='Master Sheet'!$C$10 -> Ot. Allow 3 | F37: =F32 ->  | G37: =G32 -> Ot. Allow 4 | H37: =H32 -> 0.00 | J37: SIP | K37: =K32 -> 3000.00 | L37: CM Corona | M37: =IF(A35=Deductions!$C$12,Deductions!$D$12,M32) -> 
A38: Government Of Rajasthan | M38: Page No. | O38: 2
A39: GA55 A | M39: Financial Year : | O39: =O2 -> 2019-20
B40: Salary | E40: Basic | F40: =IF(A42='Master Sheet'!$A$13,'Master Sheet'!$B$13,F33) -> 71300.00 | G40: DA | H40: =IF('Master Sheet'!$E$7="YES","",IF(F40="","",ROUND(F40*'DA HRA RATE'!$C$11,0))) -> 8556.00 | I40: =SUM(F40:F44,H40:H44) -> 85560.00 | J40: ECPenF | K40: =IFERROR(IF('Master Sheet'!$E$5="GPF","",ROUND(SUM(F40,H40)*10%,0)),"") ->  | L40: =L33 -> SIL | M40: =IF(A42=Deductions!$C$9,Deductions!$D$9,M33) -> 5000.00 | N40: =SUM(M40:M44,K40:K44) -> 13207.00 | O40: =SUM(I40-N40) -> 72353.00
E41: HRA | F41: =IF('Master Sheet'!$E$7="Yes","",IF(F40="","",ROUND(F40*'DA HRA RATE'!$D$11,0))) -> 5704.00 | G41: Wash All. | H41: =H34 ->  | J41: =J34 -> GPF | K41: =IF(A42=Deductions!$C$5,Deductions!$D$5,K34) -> 5100.00 | L41: =L34 -> SII | M41: =IF(A42=Deductions!$C$10,Deductions!$D$10,M34) -> 
A42: September | E42: Handi. All. | F42: =F35 ->  | G42: CCA | H42: =H35 ->  | J42: =J35 -> GPF Loan | K42: =IF(A42=Deductions!$C$6,Deductions!$D$6,K35) ->  | L42: LIC | M42: =IF(A42=Deductions!$C$11,Deductions!$D$11,M35) -> 
A43: =LEFT($O$2,4) -> 2019 | E43: ='Master Sheet'!$A$10 -> Ot. Allow 1 | F43: =F36 ->  | G43: ='Master Sheet'!$B$10 -> Ot. Allow 2 | H43: =H36 ->  | J43: RPMF/RGHS | K43: =IF(A42=Deductions!$C$7,Deductions!$D$7,K36) ->  | L43: Itax | M43: =IF(A42=Deductions!B23,Deductions!C23,"") -> 107.00
E44: ='Master Sheet'!$C$10 -> Ot. Allow 3 | F44: =F37 ->  | G44: =G37 -> Ot. Allow 4 | H44: =H37 -> 0.00 | J44: SIP | K44: =K37 -> 3000.00 | L44: CM Corona | M44: =IF(A42=Deductions!$C$12,Deductions!$D$12,M37) -> 
B45: Salary | E45: Basic | F45: =IF(A47='Master Sheet'!$A$13,'Master Sheet'!$B$13,F40) -> 71300.00 | G45: DA | H45: =IF('Master Sheet'!$E$7="YES","",IF(F45="","",ROUND(F45*'DA HRA RATE'!$C$12,0))) -> 8556.00 | I45: =SUM(F45:F49,H45:H49) -> 85560.00 | J45: ECPenF | K45: =IFERROR(IF('Master Sheet'!$E$5="GPF","",ROUND(SUM(F45,H45)*10%,0)),"") ->  | L45: =L40 -> SIL | M45: =IF(A47=Deductions!$C$9,Deductions!$D$9,M40) -> 5000.00 | N45: =SUM(M45:M49,K45:K49) -> 13208.00 | O45: =SUM(I45-N45) -> 72352.00
E46: HRA | F46: =IF('Master Sheet'!$E$7="Yes","",IF(F45="","",ROUND(F45*'DA HRA RATE'!$D$12,0))) -> 5704.00 | G46: Wash All. | H46: =H41 ->  | J46: =J41 -> GPF | K46: =IF(A47=Deductions!$C$5,Deductions!$D$5,K41) -> 5100.00 | L46: =L41 -> SII | M46: =IF(A47=Deductions!$C$10,Deductions!$D$10,M41) -> 
A47: October | E47: Handi. All. | F47: =F42 ->  | G47: CCA | H47: =H42 ->  | J47: =J42 -> GPF Loan | K47: =IF(A47=Deductions!$C$6,Deductions!$D$6,K42) ->  | L47: LIC | M47: =IF(A47=Deductions!$C$11,Deductions!$D$11,M42) -> 
A48: =LEFT($O$2,4) -> 2019 | E48: ='Master Sheet'!$A$10 -> Ot. Allow 1 | F48: =F43 ->  | G48: ='Master Sheet'!$B$10 -> Ot. Allow 2 | H48: =H43 ->  | J48: RPMF/RGHS | K48: =IF(A47=Deductions!$C$7,Deductions!$D$7,K43) ->  | L48: Itax | M48: =IF(A47=Deductions!B24,Deductions!C24,"") -> 108.00
E49: ='Master Sheet'!$C$10 -> Ot. Allow 3 | F49: =F44 ->  | G49: =G44 -> Ot. Allow 4 | H49: =H44 -> 0.00 | J49: SIP | K49: =K44 -> 3000.00 | L49: CM Corona | M49: =IF(A47=Deductions!$C$12,Deductions!$D$12,M44) -> 
B50: Salary | E50: Basic | F50: =IF(A52='Master Sheet'!$A$13,'Master Sheet'!$B$13,F45) -> 71300.00 | G50: DA | H50: =IF('Master Sheet'!$E$7="YES","",IF(F50="","",ROUND(F50*'DA HRA RATE'!$C$13,0))) -> 8556.00 | I50: =SUM(F50:F54,H50:H54) -> 85560.00 | J50: ECPenF | K50: =IFERROR(IF('Master Sheet'!$E$5="GPF","",ROUND(SUM(F50,H50)*10%,0)),"") ->  | L50: =L45 -> SIL | M50: =IF(A52=Deductions!$C$9,Deductions!$D$9,M45) -> 5000.00 | N50: =SUM(M50:M54,K50:K54) -> 13209.00 | O50: =SUM(I50-N50) -> 72351.00
E51: HRA | F51: =IF('Master Sheet'!$E$7="Yes","",IF(F50="","",ROUND(F50*'DA HRA RATE'!$D$13,0))) -> 5704.00 | G51: Wash All. | H51: =H46 ->  | J51: =J46 -> GPF | K51: =IF(A52=Deductions!$C$5,Deductions!$D$5,K46) -> 5100.00 | L51: SII | M51: =IF(A52=Deductions!$C$10,Deductions!$D$10,M46) -> 
A52: November | E52: Handi. All. | F52: =F47 ->  | G52: CCA | H52: =H47 ->  | J52: =J47 -> GPF Loan | K52: =IF(A52=Deductions!$C$6,Deductions!$D$6,K47) ->  | L52: LIC | M52: =IF(A52=Deductions!$C$11,Deductions!$D$11,M47) -> 
A53: =LEFT($O$2,4) -> 2019 | E53: ='Master Sheet'!$A$10 -> Ot. Allow 1 | F53: =F48 ->  | G53: ='Master Sheet'!$B$10 -> Ot. Allow 2 | H53: =H48 ->  | J53: RPMF/RGHS | K53: =IF(A52=Deductions!$C$7,Deductions!$D$7,K48) ->  | L53: Itax | M53: =IF(A52=Deductions!B25,Deductions!C25,"") -> 109.00
E54: ='Master Sheet'!$C$10 -> Ot. Allow 3 | F54: =F49 ->  | G54: =G49 -> Ot. Allow 4 | H54: =H49 -> 0.00 | J54: SIP | K54: =K49 -> 3000.00 | L54: CM Corona | M54: =IF(A52=Deductions!$C$12,Deductions!$D$12,M49) -> 
B55: Salary | E55: Basic | F55: =IF(A57='Master Sheet'!$A$13,'Master Sheet'!$B$13,F50) -> 71300.00 | G55: DA | H55: =IF('Master Sheet'!$E$7="YES","",IF(F55="","",ROUND(F55*'DA HRA RATE'!$C$14,0))) -> 8556.00 | I55: =SUM(F55:F59,H55:H59) -> 85560.00 | J55: ECPenF | K55: =IFERROR(IF('Master Sheet'!$E$5="GPF","",ROUND(SUM(F55,H55)*10%,0)),"") ->  | L55: =L50 -> SIL | M55: =IF(A57=Deductions!$C$9,Deductions!$D$9,M50) -> 5000.00 | N55: =SUM(M55:M59,K55:K59) -> 13210.00 | O55: =SUM(I55-N55) -> 72350.00
E56: HRA | F56: =IF('Master Sheet'!$E$7="Yes","",IF(F55="","",ROUND(F55*'DA HRA RATE'!$D$14,0))) -> 5704.00 | G56: Wash All. | H56: =H51 ->  | J56: =J51 -> GPF | K56: =IF(A57=Deductions!$C$5,Deductions!$D$5,K51) -> 5100.00 | L56: SII | M56: =IF(A57=Deductions!$C$10,Deductions!$D$10,M51) -> 
A57: December | E57: Handi. All. | F57: =F52 ->  | G57: CCA | H57: =H52 ->  | J57: =J52 -> GPF Loan | K57: =IF(A57=Deductions!$C$6,Deductions!$D$6,K52) ->  | L57: LIC | M57: =IF(A57=Deductions!$C$11,Deductions!$D$11,M52) -> 
A58: =LEFT($O$2,4) -> 2019 | E58: ='Master Sheet'!$A$10 -> Ot. Allow 1 | F58: =F53 ->  | G58: ='Master Sheet'!$B$10 -> Ot. Allow 2 | H58: =H53 ->  | J58: RPMF/RGHS | K58: =IF(A57=Deductions!$C$7,Deductions!$D$7,K53) ->  | L58: Itax | M58: =IF(A57=Deductions!B26,Deductions!C26,"") -> 110.00
E59: ='Master Sheet'!$C$10 -> Ot. Allow 3 | F59: =F54 ->  | G59: =G49 -> Ot. Allow 4 | H59: =H54 -> 0.00 | J59: SIP | K59: =K54 -> 3000.00 | L59: CM Corona | M59: =IF(A57=Deductions!$C$12,Deductions!$D$12,M54) -> 
B60: Salary | E60: Basic | F60: =IF(A62='Master Sheet'!$A$13,'Master Sheet'!$B$13,F55) -> 71300.00 | G60: DA | H60: =IF('Master Sheet'!$E$7="YES","",IF(F60="","",ROUND(F60*'DA HRA RATE'!$C$15,0))) -> 8556.00 | I60: =SUM(F60:F64,H60:H64) -> 85560.00 | J60: ECPenF | K60: =IFERROR(IF('Master Sheet'!$E$5="GPF","",ROUND(SUM(F60,H60)*10%,0)),"") ->  | L60: =L55 -> SIL | M60: =IF(A62=Deductions!$C$9,Deductions!$D$9,M55) -> 5000.00 | N60: =SUM(M60:M64,K60:K64) -> 13211.00 | O60: =SUM(I60-N60) -> 72349.00
E61: HRA | F61: =IF('Master Sheet'!$E$7="Yes","",IF(F60="","",ROUND(F60*'DA HRA RATE'!$D$15,0))) -> 5704.00 | G61: Wash All. | H61: =H56 ->  | J61: =J56 -> GPF | K61: =IF(A62=Deductions!$C$5,Deductions!$D$5,K56) -> 5100.00 | L61: SII | M61: =IF(A62=Deductions!$C$10,Deductions!$D$10,M56) -> 
A62: January | E62: Handi. All. | F62: =F57 ->  | G62: CCA | H62: =H57 ->  | J62: =J57 -> GPF Loan | K62: =IF(A62=Deductions!$C$6,Deductions!$D$6,K57) ->  | L62: LIC | M62: =IF(A62=Deductions!$C$11,Deductions!$D$11,M57) -> 
A63: =LEFT($O$2,2)&RIGHT($O$2,2) -> 2020 | E63: ='Master Sheet'!$A$10 -> Ot. Allow 1 | F63: =F58 ->  | G63: ='Master Sheet'!$B$10 -> Ot. Allow 2 | H63: =H58 ->  | J63: RPMF/RGHS | K63: =IF(A62=Deductions!$C$7,Deductions!$D$7,K58) ->  | L63: Itax | M63: =IF(A62=Deductions!B27,Deductions!C27,"") -> 111.00
E64: ='Master Sheet'!$C$10 -> Ot. Allow 3 | F64: =F59 ->  | G64: =G59 -> Ot. Allow 4 | H64: =H59 -> 0.00 | J64: SIP | K64: =K59 -> 3000.00 | L64: CM Corona | M64: =IF(A62=Deductions!$C$12,Deductions!$D$12,M59) -> 
B65: Salary | E65: Basic | F65: =IF(A67='Master Sheet'!$A$13,'Master Sheet'!$B$13,F60) -> 71300.00 | G65: DA | H65: =IF('Master Sheet'!$E$7="YES","",IF(F65="","",ROUND(F65*'DA HRA RATE'!$C$16,0))) -> 8556.00 | I65: =SUM(F65:F69,H65:H69) -> 85560.00 | J65: ECPenF | K65: =IFERROR(IF('Master Sheet'!$E$5="GPF","",ROUND(SUM(F65,H65)*10%,0)),"") ->  | L65: =L60 -> SIL | M65: =IF(A67=Deductions!$C$9,Deductions!$D$9,M60) -> 5000.00 | N65: =SUM(M65:M69,K65:K69) -> 13212.00 | O65: =SUM(I65-N65) -> 72348.00
E66: HRA | F66: =IF('Master Sheet'!$E$7="Yes","",IF(F65="","",ROUND(F65*'DA HRA RATE'!$D$16,0))) -> 5704.00 | G66: Wash All. | H66: =H61 ->  | J66: =J61 -> GPF | K66: =IF(A67=Deductions!$C$5,Deductions!$D$5,K61) -> 5100.00 | L66: SII | M66: =IF(A67=Deductions!$C$10,Deductions!$D$10,M61) -> 
A67: February | E67: Handi. All. | F67: =F62 ->  | G67: CCA | H67: =H62 ->  | J67: =J62 -> GPF Loan | K67: =IF(A67=Deductions!$C$6,Deductions!$D$6,K62) ->  | L67: LIC | M67: =IF(A67=Deductions!$C$11,Deductions!$D$11,M62) -> 
A68: =LEFT($O$2,2)&RIGHT($O$2,2) -> 2020 | E68: ='Master Sheet'!$A$10 -> Ot. Allow 1 | F68: =F63 ->  | G68: ='Master Sheet'!$B$10 -> Ot. Allow 2 | H68: =H63 ->  | J68: RPMF/RGHS | K68: =IF(A67=Deductions!$C$7,Deductions!$D$7,K63) ->  | L68: Itax | M68: =IF(A67=Deductions!B28,Deductions!C28,"") -> 112.00
E69: ='Master Sheet'!$C$10 -> Ot. Allow 3 | F69: =F64 ->  | G69: =G59 -> Ot. Allow 4 | H69: =H64 -> 0.00 | J69: SIP | K69: =K64 -> 3000.00 | L69: CM Corona | M69: =IF(A67=Deductions!$C$12,Deductions!$D$12,M64) -> 
A70: Month | B70: Bonus | E70: Bouns | F70: =IF('Master Sheet'!D11="Yes",ROUND(6774/12*'Master Sheet'!$E$11,0),"") ->  | I70: =SUM(F70) -> 0.00 | J70: GPF 2004 | L70: Other Ded. | N70: =SUM(K70,M70) -> 0.00 | O70: =SUM(I70-N70) -> 0.00
A71: Month | B71: DA | E71: DA | F71: 2076.00 | G71: DA | H71: 2076.00 | I71: =SUM(F71,H71) -> 4152.00 | J71: ECPenF | K71: =IFERROR(IF('Master Sheet'!$E$5="GPF","",ROUND(SUM(F71,H71)*10%,0)),"") ->  | L71: GPF | M71: =IF('Master Sheet'!$E$5="NPS","",I71) -> 4152.00 | N71: =SUM(K71,M71) -> 4152.00 | O71: =SUM(I71-N71) -> 0.00
A72: Month | B72: DA | E72: DA | G72: DA | I72: =SUM(F72,H72) -> 0.00 | J72: ECPenF | K72: =IFERROR(IF('Master Sheet'!$E$5="GPF","",ROUND(SUM(F72,H72)*10%,0)),"") ->  | L72: GPF | M72: =IF('Master Sheet'!$E$5="NPS","",I72) -> 0.00 | N72: =SUM(K72,M72) -> 0.00 | O72: =SUM(I72-N72) -> 0.00
A73: ='Master Sheet'!E9 -> November | B73: Surrender | E73: Basic | F73: =ROUND(VLOOKUP($A$73,$W$8:$X$19,2,0)/2,0) -> 35650.00 | G73: DA | H73: =ROUND(VLOOKUP($A$73,Table1[[#All],[Month]:[DA Rate]],2,0)*F73,0) -> 4278.00 | I73: =SUM(F73,H73) -> 39928.00 | J73: Itax | L73: Other Ded. | N73: =SUM(K73,M73) -> 0.00 | O73: =SUM(I73-N73) -> 39928.00
A74: Government Of Rajasthan | M74: Page No. | O74: 3
A75: GA55 A | M75: Financial Year : | O75: =O2 -> 2019-20
A76: Month | B76: Salary Arrear | E76: Basic | G76: DA | I76: =SUM(H76:H77,F76:F77) -> 0.00 | J76: ECPenF | K76: =IFERROR(IF('Master Sheet'!$E$5="GPF","",ROUND(SUM(F76,H76)*10%,0)),"") ->  | L76: Itax | N76: =SUM(M76:M77,K76:K77) -> 0.00 | O76: =SUM(I76-N76) -> 0.00
E77: HRA | G77: =E48 -> Ot. Allow 1 | J77: GPF | L77: Other Ded.
A78: Month | B78: Other Arrear | E78: Basic | G78: DA | I78: =SUM(H78:H79,F78:F79) -> 0.00 | J78: ECPenF | K78: =IFERROR(IF('Master Sheet'!$E$5="GPF","",ROUND(SUM(F78,H78)*10%,0)),"") ->  | L78: Itax | N78: =SUM(M78:M79,K78:K79) -> 0.00 | O78: =SUM(I78-N78) -> 0.00
E79: HRA | G79: =G77 -> Ot. Allow 1 | J79: GPF | L79: Other Ded.
A80: Month | B80: Other Arrear | E80: Basic | G80: DA | I80: =SUM(H80:H81,F80:F81) -> 0.00 | J80: ECPenF | K80: =IFERROR(IF('Master Sheet'!$E$5="GPF","",ROUND(SUM(F80,H80)*10%,0)),"") ->  | L80: Itax | N80: =SUM(M80:M81,K80:K81) -> 0.00 | O80: =SUM(I80-N80) -> 0.00
E81: HRA | G81: =G79 -> Ot. Allow 1 | J81: GPF | L81: Other Ded.
A82: Month | B82: Other Arrear | E82: Basic | G82: DA | I82: =SUM(H82:H83,F82:F83) -> 0.00 | J82: ECPenF | K82: =IFERROR(IF('Master Sheet'!$E$5="GPF","",ROUND(SUM(F82,H82)*10%,0)),"") ->  | L82: Itax | N82: =SUM(M82:M83,K82:K83) -> 0.00 | O82: =SUM(I82-N82) -> 0.00
E83: HRA | G83: =G77 -> Ot. Allow 1 | J83: GPF | L83: Other Ded.
B85: Total Allowances | G85: Total Allowances
B86: =E8 -> Basic | D86: 100 | E86: =SUMIF($E$8:$E$37,$B86,$F$8:$F$37)+SUMIF($E$40:$E$73,$B86,$F$40:$F$73)+SUMIF($E$76:$E$83,$B86,$F$76:$F$83)+SUMIF($G$8:$G$37,$B86,$H$8:$H$37)+SUMIF($G$40:$G$73,$B86,$H$40:$H$73)+SUMIF($G$76:$G$83,$B86,$H$76:$H$83) -> 882850.00 | G86: ECPenF | I86: =SUMIF($J$8:$J$37,$G86,$K$8:$K$37)+SUMIF($L$8:$L$37,$G86,$M$8:$M$37)+SUMIF($J$40:$J$73,$G86,$K$40:$K$73)+SUMIF($L$40:$L$73,$G86,$M$40:$M$73)+SUMIF($J$76:$J$83,$G86,$K$76:$K$83)+SUMIF($L$76:$L$83,$G86,$M$76:$M$83) -> 0.00
B87: =E9 -> HRA | D87: 107 | E87: 67776.00 | G87: GPF | I87: 65352.00
B88: Handi. All. | E88: 0.00 | G88: SIP | I88: 36000.00
B89: =G8 -> DA | D89: 104 | E89: 110094.00 | G89: RPMF | I89: 0.00
B90: =G9 -> Wash All. | E90: 0.00 | G90: CM Corona | I90: 0.00
B91: CCA | E91: 0.00 | G91: LIC | I91: 0.00
B92: =E70 -> Bouns | E92: 0.00 | G92: GPF Loan | I92: 0.00
B93: =E11 -> Ot. Allow 1 | E93: 0.00 | G93: SIL | I93: 60000.00
B94: =G11 -> Ot. Allow 2 | E94: 0.00 | G94: Itax | I94: 1278.00
B95: =E12 -> Ot. Allow 3 | E95: 0.00 | G95: Other Ded. | I95: 0.00
B96: Total Allowances: | D96: =ROUND(SUM(E86:E95),0) -> 1060720.00 | G96: Total Deduction: | I96: =ROUND(SUM(I86:J95),0) -> 162630.00 | L96: Total Net Amount : | N96: =IFERROR(D96-I96,"") -> 898090.00
